bitfinex/quotes_BTCUSD_20251114
["timestamp","ask_amount","ask_price","bid_price","bid_amount"]
[1763109983789,0.0119,97172.0,97170.0,0.22522129]
[1763109983959,0.0129,97172.0,97170.0,0.22522129]
[1763109984322,0.0119,97172.0,97170.0,0.22522129]
[1763109984647,0.0129,97172.0,97170.0,0.22522129]
[1763109984854,0.0119,97172.0,97170.0,0.11293866]
[1763109985190,0.21772158,97172.0,97170.0,0.11293866]
[1763109985391,0.0119,97172.0,97170.0,0.11293866]
[1763109985582,0.0119,97172.0,97170.0,0.31876311]
[1763109985780,0.0129,97172.0,97170.0,0.31876311]
[1763109986017,0.0129,97172.0,97171.0,0.07304223]
[1763109987015,0.2177206,97172.0,97170.0,0.019397]
[1763109987409,0.22143272,97171.0,97170.0,0.019397]
[1763109987650,0.01561,97171.0,97170.0,0.019397]
[1763109987843,0.01561,97171.0,97170.0,0.22522184]
[1763109988421,0.01561,97171.0,97170.0,0.20582484]
[1763109989077,0.01661,97171.0,97170.0,0.27684496]
[1763109989487,0.001,97171.0,97170.0,0.27684496]
[1763109989749,0.001,97171.0,97170.0,0.29624196]
[1763109989934,0.001,97171.0,97170.0,0.27684496]
[1763109990051,0.002,97171.0,97170.0,0.29624196]
[1763109990278,0.002,97171.0,97170.0,0.27684496]
[1763109990488,0.01824,97171.0,97164.0,0.20583687]
[1763109990692,0.002,97171.0,97163.0,0.0927123]
[1763109990898,0.001,97171.0,97163.0,0.0927123]
[1763109991159,0.001,97171.0,97170.0,0.20582484]
[1763109991312,0.001,97171.0,97163.0,0.0927123]
[1763109991517,0.001,97171.0,97164.0,0.02664644]
[1763109991719,0.001,97171.0,97165.0,0.20583524]
[1763109991941,0.01172,97172.0,97167.0,0.20583036]
[1763109992104,0.20582272,97171.0,97167.0,0.20583049]
[1763109992304,0.01172,97172.0,97164.0,0.02664644]
[1763109992726,0.20582869,97169.0,97165.0,0.04899421]
[1763109992925,0.20582859,97169.0,97165.0,0.25482555]
[1763109993127,0.20582859,97169.0,97165.0,0.04899421]
[1763109993335,0.20583331,97166.0,97165.0,0.04899421]
[1763109993545,0.22207331,97166.0,97160.0,0.019397]
[1763109993745,0.22208194,97164.0,97162.0,0.0927123]
[1763109993955,0.01624,97163.0,97162.0,0.0927123]
[1763109995209,0.22207967,97163.0,97162.0,0.0927123]
[1763109995426,0.22207967,97163.0,97152.0,0.00192614]
[1763109995427,0.20585898,97154.0,97152.0,0.00192614]
[1763109995642,0.20585922,97154.0,97153.0,0.02502769]
[1763109995858,0.33924,97153.0,97152.0,0.00192614]
[1763109996733,0.47537104,97153.0,97152.0,0.00192614]
[1763109997146,0.47537104,97153.0,97130.0,0.0004]
[1763109997147,0.323,97141.0,97130.0,0.0004]
[1763109997350,0.23007748,97131.0,97130.0,0.0004]
[1763109998103,0.02417,97131.0,97130.0,0.0004]
[1763109998316,0.03419743,97131.0,97130.0,0.0004]
[1763109998533,0.03419743,97131.0,97130.0,0.00098715]
[1763109999615,0.03419743,97131.0,97130.0,0.00198715]
[1763109999806,0.03419743,97131.0,97130.0,0.00298715]
[1763110003041,0.35719743,97131.0,97130.0,0.00298715]
[1763110004119,0.35719743,97131.0,97130.0,0.00198715]
[1763110004342,0.23007748,97131.0,97130.0,0.00198715]
[1763110004545,0.23007748,97131.0,97130.0,0.00298715]
[1763110004952,0.23007748,97131.0,97130.0,0.00198715]
[1763110004953,0.02417,97131.0,97130.0,0.00198715]
[1763110005068,0.02417,97131.0,97130.0,0.00298715]
[1763110008462,0.2059096,97130.0,97120.0,0.019797]
[1763110008681,0.02417,97131.0,97120.0,0.019797]
[1763110008980,0.00793,97131.0,97121.0,0.04340788]
[1763110009378,0.00793,97131.0,97130.0,0.019397]
[1763110010211,0.02417,97131.0,97121.0,0.00024025]
[1763110010538,0.20591381,97129.0,97127.0,0.0927123]
[1763110011119,0.20592656,97122.0,97121.0,0.00024025]
[1763110011339,0.23388656,97122.0,97121.0,0.00024025]
[1763110011959,0.21764656,97122.0,97121.0,0.00024025]
[1763110012924,0.00793,97140.0,97121.0,0.00024025]
[1763110013273,0.00793,97140.0,97130.0,0.00923]
[1763110013452,0.20589682,97138.0,97133.0,0.20590292]
[1763110013633,0.00793,97140.0,97136.0,0.20589663]
[1763110013831,0.00793,97140.0,97137.0,0.20589434]
[1763110014058,0.01172,97149.0,97137.0,0.0487742]
[1763110014059,0.01028497,97147.0,97137.0,0.0487742]
[1763110014222,0.01172,97149.0,97137.0,0.00901]
[1763110014418,0.01172,97149.0,97147.0,0.20587238]
[1763110014663,0.01172,97149.0,97148.0,0.20587145]
[1763110014893,0.20586347,97152.0,97148.0,0.20587145]
[1763110015113,0.20586081,97154.0,97150.0,0.20586678]
[1763110015322,0.20586081,97154.0,97150.0,0.03082491]
[1763110015505,0.20587145,97148.0,97147.0,0.00967]
[1763110015798,0.2058545,97156.0,97140.0,0.019397]
[1763110015941,0.20588453,97142.0,97140.0,0.019397]
[1763110016138,0.20587072,97149.0,97140.0,0.019397]
[1763110016402,0.20586422,97152.0,97148.0,0.0927123]
[1763110016609,0.20586762,97150.0,97149.0,0.07103492]
[1763110016936,0.20587195,97148.0,97145.0,0.0927123]
[1763110017094,0.02273,97154.0,97145.0,0.0927123]
[1763110017256,0.20587569,97146.0,97145.0,0.0927123]
[1763110017889,0.01624,97146.0,97130.0,0.019397]
[1763110018107,0.01172,97136.0,97135.0,0.0927123]
[1763110018342,0.01172,97136.0,97135.0,0.12451434]
[1763110018539,0.01172,97136.0,97135.0,0.0927123]
[1763110018719,0.01172,97144.0,97136.0,0.20589688]
[1763110018925,0.01172,97144.0,97140.0,0.019397]
[1763110019124,0.20588502,97142.0,97140.0,0.019397]
[1763110019547,0.20588532,97142.0,97140.0,0.019397]
[1763110019749,0.20588532,97142.0,97141.0,0.02664644]
[1763110020884,0.22244532,97142.0,97141.0,0.02664644]
[1763110021084,0.22244532,97142.0,97141.0,0.02764644]
[1763110021455,0.20588416,97142.0,97141.0,0.02864644]
[1763110022114,0.5,97150.0,97141.0,0.05173644]
[1763110022334,0.5,97150.0,97149.0,0.01503]
[1763110022534,0.5,97150.0,97149.0,0.23056933]
[1763110022737,0.70586721,97150.0,97149.0,0.00967]
[1763110022970,0.70586721,97150.0,97142.0,0.03697299]
[1763110022971,0.20588253,97143.0,97141.0,0.02764644]
[1763110023581,0.20588416,97142.0,97141.0,0.02764644]
[1763110023753,0.20588416,97142.0,97141.0,0.02664644]
[1763110024202,0.20589476,97137.0,97136.0,0.0927123]
[1763110024393,0.2059057,97132.0,97130.0,0.019397]
[1763110024595,0.20590748,97131.0,97130.0,0.019397]
[1763110025392,0.23477748,97131.0,97130.0,0.019397]
[1763110025676,0.23477748,97131.0,97127.0,0.0927123]
[1763110025677,0.20592444,97123.0,97121.0,0.00024025]
[1763110025922,0.01656,97122.0,97121.0,0.00024025]
[1763110026126,0.33956,97122.0,97121.0,0.00024025]
[1763110026344,0.20591384,97128.0,97121.0,0.00024025]
[1763110026345,0.01231,97131.0,97121.0,0.00024025]
[1763110026559,0.01656,97122.0,97121.0,0.00024025]
[1763110027022,0.01656,97122.0,97121.0,0.00124025]
[1763110027244,0.20592492,97123.0,97121.0,0.00024025]
[1763110027456,0.20592492,97123.0,97121.0,0.00124025]
[1763110027876,0.20592492,97123.0,97121.0,0.00024025]
[1763110028116,0.30883288,97140.0,97121.0,0.00024025]
[1763110028328,0.01615,97122.0,97121.0,0.00024025]
[1763110028692,0.01515,97122.0,97121.0,0.00024025]
[1763110029731,0.01615,97122.0,97121.0,0.00024025]
[1763110030395,0.01715,97122.0,97121.0,0.00024025]
[1763110032175,0.002,97122.0,97121.0,0.00024025]
[1763110032574,0.001,97122.0,97121.0,0.00024025]
[1763110032778,0.01615,97122.0,97121.0,0.00024025]
[1763110033030,0.33915,97122.0,97121.0,0.00024025]
[1763110033690,0.33915,97122.0,97110.0,0.0004]
[1763110033691,0.52894989,97111.0,97110.0,0.0004]
[1763110033904,0.54409989,97111.0,97110.0,0.0004]
[1763110034959,0.54409989,97111.0,97110.0,0.0014]
[1763110035362,0.54409989,97111.0,97110.0,0.0004]
[1763110036187,0.5928982,97111.0,97110.0,0.0004]
[1763110036386,0.24938984,97101.0,97100.0,0.0004]
[1763110036597,0.59443984,97101.0,97100.0,0.0004]
[1763110036796,0.59443984,97101.0,97080.0,0.0004]
[1763110036797,0.20601353,97081.0,97080.0,0.0004]
[1763110037016,0.23306353,97081.0,97080.0,0.0004]
[1763110037948,0.24338695,97081.0,97080.0,0.0014]
[1763110038123,0.56638695,97081.0,97080.0,0.0014]
[1763110038385,0.55606353,97081.0,97080.0,0.0014]
[1763110038572,0.55606353,97081.0,97080.0,0.0004]
[1763110038779,0.55606353,97081.0,97080.0,0.0024]
[1763110039623,0.55606353,97081.0,97080.0,0.00349497]
[1763110043288,0.20603475,97071.0,97070.0,0.0004]
[1763110043494,0.23308475,97071.0,97070.0,0.0004]
[1763110043719,0.23308475,97071.0,97070.0,0.00066715]
[1763110044481,0.23408475,97071.0,97070.0,0.00066715]
[1763110044918,0.23508475,97071.0,97070.0,0.00066715]
[1763110045094,0.55808475,97071.0,97070.0,0.00066715]
[1763110045453,0.60150349,97071.0,97070.0,0.00066715]
[1763110045653,0.20609845,97041.0,97040.0,0.0004]
[1763110045880,0.23314845,97041.0,97040.0,0.0004]
[1763110048081,0.23314845,97041.0,97040.0,0.0014]
[1763110048292,0.23314845,97041.0,97040.0,0.0004]
[1763110051303,0.23314845,97041.0,97040.0,0.00120174]
[1763110051940,0.03616,97049.0,97040.0,0.00120174]
[1763110052202,0.01163,97049.0,97041.0,0.0927123]
[1763110052353,0.323,97059.0,97048.0,0.0005879]
[1763110052560,0.323,97057.0,97052.0,0.20607375]
[1763110052762,0.2060514,97064.0,97050.0,0.019397]
[1763110052976,0.01030184,97070.0,97060.0,0.019397]
[1763110053181,0.01030184,97070.0,97050.0,0.019397]
[1763110053182,0.01619,97061.0,97050.0,0.019397]
[1763110053488,0.20609845,97041.0,97040.0,0.0004]
[1763110053663,0.22228845,97041.0,97040.0,0.0004]
[1763110054927,0.22328845,97041.0,97040.0,0.0004]
[1763110055131,0.24244952,97041.0,97040.0,0.0004]
[1763110055570,0.24344952,97041.0,97040.0,0.0004]
[1763110055746,0.25202447,97041.0,97040.0,0.0004]
[1763110055967,0.20611969,97031.0,97030.0,0.0004]
[1763110056167,0.25310076,97031.0,97030.0,0.0004]
[1763110057166,0.22628076,97031.0,97030.0,0.0004]
[1763110057371,0.24247076,97031.0,97030.0,0.0004]
[1763110057573,0.24347076,97031.0,97030.0,0.0004]
[1763110058569,0.25302265,97031.0,97030.0,0.0004]
[1763110059054,0.25302265,97031.0,97030.0,0.0014691]
[1763110059055,0.03071296,97031.0,97030.0,0.0014691]
[1763110059265,0.02116107,97031.0,97030.0,0.0014691]
[1763110059471,0.02116107,97031.0,97030.0,0.0208661]
[1763110059677,0.00080174,97040.0,97039.0,0.2306927]
[1763110060062,0.00080174,97040.0,97039.0,0.323405]
[1763110060265,0.00080174,97040.0,97039.0,0.16871003]
[1763110060430,0.00080174,97040.0,97039.0,0.0927123]
[1763110060633,0.01035272,97040.0,97039.0,0.0927123]
[1763110061459,0.01135272,97040.0,97039.0,0.0927123]
[1763110061659,0.01035272,97040.0,97039.0,0.0927123]
[1763110061866,0.23264329,97040.0,97011.0,0.1457]
[1763110062065,0.22230969,97031.0,97030.0,0.0004]
[1763110062278,0.00955098,97031.0,97030.0,0.0004]
[1763110062481,0.00955098,97031.0,97030.0,0.04138457]
[1763110063294,0.01055098,97031.0,97030.0,0.04138457]
[1763110063499,0.01055098,97031.0,97030.0,0.019797]
[1763110063833,0.00955098,97031.0,97030.0,0.019797]
[1763110064042,0.00955098,97031.0,97030.0,0.0004]
[1763110064243,0.01155098,97031.0,97030.0,0.20652181]
[1763110064924,0.01055098,97031.0,97030.0,0.20652181]
[1763110065131,0.01055098,97031.0,97030.0,0.08626101]
[1763110065335,0.01055098,97031.0,97030.0,0.0004]
[1763110065765,0.01155098,97031.0,97030.0,0.0004]
[1763110067125,0.01155098,97031.0,97029.0,0.20612326]
[1763110067326,0.002,97031.0,97026.0,0.20613031]
[1763110067511,0.002,97031.0,97028.0,0.20612548]
[1763110067715,0.002,97031.0,97030.0,0.019397]
[1763110067716,0.20811969,97031.0,97030.0,0.019397]
[1763110067910,0.20811969,97031.0,97023.0,0.00934]
[1763110067911,0.20613384,97025.0,97023.0,0.00934]
[1763110068637,0.20614093,97021.0,97020.0,0.019797]
[1763110068801,0.20614093,97021.0,97020.0,0.0004]
[1763110069017,0.22233093,97021.0,97020.0,0.0004]
[1763110069222,0.20614093,97021.0,97020.0,0.00971123]
[1763110069392,0.20614,97022.0,97020.0,0.00971123]
[1763110070618,0.20714,97022.0,97020.0,0.00971123]
[1763110070996,0.20714,97022.0,97021.0,0.00130977]
[1763110071207,0.21669288,97022.0,97021.0,0.00130977]
[1763110071412,0.21669288,97022.0,97021.0,0.0116831]
[1763110071616,0.23580284,97022.0,97021.0,0.0116831]
[1763110071835,0.03066284,97022.0,97021.0,0.0116831]
[1763110072039,0.03066284,97022.0,97021.0,0.21782403]
[1763110072276,0.02966284,97022.0,97021.0,0.21782403]
[1763110073129,0.03066284,97022.0,97021.0,0.21782403]
[1763110073340,0.02966284,97022.0,97021.0,0.21782403]
[1763110073562,0.03066284,97022.0,97021.0,0.21782403]
[1763110075059,0.02110996,97022.0,97021.0,0.21782403]
[1763110075720,0.02010996,97022.0,97021.0,0.21782403]
[1763110075982,0.02203885,97046.0,97045.0,0.20608995]
[1763110076212,0.20605897,97060.0,97053.0,0.20607297]
[1763110076213,0.02770947,97054.0,97053.0,0.20607297]
[1763110076421,0.05077895,97054.0,97053.0,0.20607297]
[1763110076629,0.05077895,97054.0,97053.0,0.20652723]
[1763110076842,0.02871909,97054.0,97053.0,0.29369503]
[1763110077278,0.05077895,97054.0,97053.0,0.29369503]
[1763110077689,0.05177895,97054.0,97053.0,0.29369503]
[1763110078115,0.02014606,97054.0,97053.0,0.29369503]
[1763110078335,0.04221914,97054.0,97053.0,0.26933503]
[1763110078551,0.05180196,97054.0,97053.0,0.06326206]
[1763110078750,0.05280196,97054.0,97053.0,0.00045426]
[1763110079538,0.06899196,97054.0,97053.0,0.00045426]
[1763110081389,0.05280196,97054.0,97053.0,0.20652723]
[1763110081594,0.0307421,97054.0,97053.0,0.22811995]
[1763110082004,0.0307421,97054.0,97053.0,0.02204698]
[1763110082155,0.05280196,97054.0,97053.0,0.00045426]
[1763110082367,0.02115928,97054.0,97053.0,0.00045426]
[1763110083548,0.05291673,97054.0,97053.0,0.00045426]
[1763110083998,0.03375745,97054.0,97053.0,0.00045426]
[1763110084130,0.04971745,97054.0,97053.0,0.00045426]
[1763110084566,0.03375745,97054.0,97053.0,0.00045426]
[1763110087684,0.002,97054.0,97053.0,0.00045426]
[1763110089305,0.002,97054.0,97053.0,0.20652723]
[1763110089526,0.002,97054.0,97053.0,0.52952723]
[1763110089948,0.0015,97054.0,97053.0,0.52952723]
[1763110090160,0.20600716,97084.0,97080.0,0.019397]
[1763110090398,0.25702747,97083.0,97070.0,0.019397]
[1763110090604,0.20603632,97071.0,97070.0,0.019397]
[1763110090824,0.20603475,97071.0,97070.0,0.04194166]
[1763110091891,0.20603475,97071.0,97070.0,0.019397]
[1763110092104,0.20703475,97071.0,97070.0,0.019397]
[1763110092309,0.20605598,97061.0,97060.0,0.019397]
[1763110092515,0.20605386,97062.0,97060.0,0.019397]
[1763110092932,0.20604539,97066.0,97060.0,0.019397]
[1763110093139,0.001,97071.0,97060.0,0.019397]
[1763110093333,0.20703475,97071.0,97070.0,0.0927123]
[1763110093512,0.20703475,97071.0,97070.0,0.10198353]
[1763110094270,0.20603475,97071.0,97070.0,0.10198353]
[1763110094487,0.20603475,97071.0,97070.0,0.00927123]
[1763110094696,0.20603475,97071.0,97060.0,0.019397]
[1763110094697,0.0151,97071.0,97061.0,0.20605552]
[1763110094917,0.20604961,97064.0,97060.0,0.22545495]
[1763110095097,0.20605598,97061.0,97060.0,0.019397]
[1763110095348,0.20606793,97056.0,97052.0,0.0927123]
[1763110095564,0.20604324,97067.0,97053.0,0.02702274]
[1763110095767,0.20605598,97061.0,97060.0,0.019397]
[1763110096182,0.2060542,97062.0,97060.0,0.01966419]
[1763110096385,0.02408,97073.0,97060.0,0.019397]
[1763110096592,0.20602501,97076.0,97068.0,0.20603964]
[1763110096796,0.323,97089.0,97073.0,0.20602984]
[1763110097000,0.2060077,97084.0,97068.0,0.02277]
[1763110097204,0.206039,97069.0,97068.0,0.0094]
[1763110097608,0.20603442,97072.0,97068.0,0.0094]
[1763110097760,0.20603035,97074.0,97070.0,0.019397]
[1763110098178,0.20603475,97071.0,97070.0,0.019397]
[1763110099148,0.001,97074.0,97070.0,0.22543357]
[1763110099287,0.001,97074.0,97071.0,0.05241898]
[1763110099498,0.20602414,97076.0,97073.0,0.2060299]
[1763110099743,0.20602671,97075.0,97072.0,0.20603251]
[1763110099949,0.001,97074.0,97072.0,0.20603251]
[1763110100339,0.20603263,97072.0,97071.0,0.05241898]
[1763110100520,0.20603248,97073.0,97071.0,0.05241898]
[1763110100719,0.001,97074.0,97072.0,0.26369415]
[1763110100944,0.001,97074.0,97073.0,0.20603051]
[1763110101570,0.2176241,97091.0,97080.0,0.019397]
[1763110101571,0.01163,97091.0,97080.0,0.019397]
[1763110101909,0.0096197,97090.0,97084.0,0.0927123]
[1763110102043,0.20600292,97086.0,97085.0,0.01180223]
[1763110102246,0.22816607,97086.0,97085.0,0.01180223]
[1763110102443,0.0151,97086.0,97073.0,0.00934]
[1763110102671,0.20603475,97071.0,97070.0,0.019397]
[1763110103392,0.20602937,97074.0,97071.0,0.20603443]
[1763110103603,0.20603475,97071.0,97070.0,0.019397]
[1763110105111,0.20602894,97074.0,97070.0,0.22543382]
[1763110105440,0.20703475,97071.0,97070.0,0.019397]
[1763110105572,0.001,97071.0,97070.0,0.22543388]
[1763110105776,0.001,97071.0,97070.0,0.20603688]
[1763110106168,0.001,97071.0,97070.0,0.22880688]
[1763110106401,0.001,97071.0,97070.0,0.20603688]
[1763110106607,0.001,97071.0,97070.0,0.27806]
[1763110108355,0.002,97071.0,97070.0,0.27806]
[1763110110259,0.002,97071.0,97070.0,0.258663]
[1763110110462,0.002,97071.0,97070.0,0.07202312]
[1763110110665,0.002,97071.0,97070.0,0.20603688]
[1763110111020,0.002,97071.0,97070.0,0.019397]
[1763110111226,0.2080365,97071.0,97070.0,0.019397]
[1763110111429,0.20603688,97070.0,97068.0,0.0927123]
[1763110111556,0.20605173,97063.0,97062.0,0.14534512]
[1763110111757,0.20605173,97063.0,97062.0,0.18563807]
[1763110111965,0.20605173,97063.0,97062.0,0.14534512]
[1763110112163,0.20605386,97062.0,97060.0,0.019397]
[1763110112365,0.20605386,97062.0,97061.0,0.00024047]
[1763110112589,0.01542,97062.0,97061.0,0.00024047]
[1763110113349,0.33842,97062.0,97061.0,0.00024047]
[1763110113497,0.33842,97062.0,97061.0,0.00124047]
[1763110114930,0.33842,97062.0,97061.0,0.00024047]
[1763110115462,0.33942,97062.0,97061.0,0.00024047]
[1763110115867,0.33842,97062.0,97061.0,0.00024047]
[1763110118072,0.01542,97062.0,97061.0,0.00024047]
[1763110118256,0.20605312,97063.0,97061.0,0.00024047]
[1763110119808,0.01542,97062.0,97061.0,0.00024047]
[1763110124386,0.22147386,97062.0,97061.0,0.00024047]
[1763110125120,0.20605312,97063.0,97061.0,0.00024047]
[1763110125121,0.20605173,97063.0,97061.0,0.00024047]
[1763110125331,0.20605386,97062.0,97061.0,0.00024047]
[1763110125748,0.20604198,97068.0,97061.0,0.00024047]
[1763110126123,0.20603608,97071.0,97061.0,0.00024047]
[1763110126330,0.20603475,97071.0,97070.0,0.019397]
[1763110126725,0.20605386,97062.0,97061.0,0.00124047]
[1763110126927,0.20604496,97067.0,97061.0,0.00124047]
[1763110127125,0.02486,97084.0,97061.0,0.00124047]
[1763110127284,0.20603475,97071.0,97070.0,0.019397]
[1763110127684,0.20604537,97066.0,97065.0,0.0927123]
[1763110129172,0.20604344,97067.0,97065.0,0.0937123]
[1763110129351,0.20604344,97067.0,97065.0,0.0947123]
[1763110129495,0.2060326,97073.0,97065.0,0.0947123]
[1763110129694,0.20603475,97071.0,97070.0,0.019397]
[1763110130333,0.20603285,97072.0,97070.0,0.019397]
[1763110131690,0.20603285,97072.0,97070.0,0.020397]
[1763110132166,0.20603285,97072.0,97070.0,0.021397]
[1763110132397,0.20603376,97072.0,97070.0,0.021397]
[1763110132600,0.00765,97080.0,97071.0,0.01502516]
[1763110132804,0.02219154,97092.0,97082.0,0.20600936]
[1763110133017,0.20598695,97094.0,97086.0,0.0927123]
[1763110133220,0.20599947,97088.0,97086.0,0.0927123]
[1763110133369,0.20600208,97087.0,97084.0,0.0094]
[1763110133708,0.01207,97098.0,97085.0,0.0927123]
[1763110133892,0.20599231,97091.0,97090.0,0.019397]
[1763110134403,0.01207,97098.0,97090.0,0.019397]
[1763110134545,0.20599231,97091.0,97090.0,0.019397]
[1763110135597,0.01029866,97100.0,97092.0,0.20599004]
[1763110135801,0.20597952,97098.0,97090.0,0.019397]
[1763110136000,0.20598353,97096.0,97090.0,0.019397]
[1763110136197,0.20596685,97103.0,97097.0,0.20597932]
[1763110136454,0.20598091,97097.0,97094.0,0.20598583]
[1763110136662,0.2059917,97092.0,97090.0,0.019397]
[1763110136869,0.20599231,97091.0,97090.0,0.05448544]
[1763110137069,0.20599231,97091.0,97090.0,0.019397]
[1763110137619,0.2059917,97092.0,97090.0,0.019397]
[1763110137823,0.20598727,97094.0,97090.0,0.22539024]
[1763110138138,0.2059857,97095.0,97091.0,0.20599027]
[1763110138537,0.2059857,97095.0,97090.0,0.020397]
[1763110138538,0.20597528,97101.0,97090.0,0.019397]
[1763110138747,0.22816048,97100.0,97095.0,0.20598336]
[1763110138973,0.02218715,97099.0,97095.0,0.20598336]
[1763110139364,0.03694596,97115.0,97091.0,0.21814112]
[1763110139693,0.30888302,97125.0,97110.0,0.019397]
[1763110139694,0.04993846,97114.0,97110.0,0.019397]
[1763110139841,0.00962904,97113.0,97110.0,0.019397]
[1763110140041,0.02218576,97115.0,97111.0,0.0094]
[1763110140274,0.0096291,97114.0,97112.0,0.22942109]
[1763110140478,0.03786419,97120.0,97118.0,0.20593504]
[1763110140679,0.01011149,97120.0,97119.0,0.0927123]
[1763110140875,0.0277527,97124.0,97122.0,0.20592656]
[1763110141078,0.02888603,97123.0,97122.0,0.20592656]
[1763110141294,0.02218576,97130.0,97123.0,0.02339]
[1763110141510,0.02218576,97135.0,97131.0,0.02531]
[1763110141698,0.0277527,97136.0,97135.0,0.221809]
[1763110141869,0.02888476,97136.0,97135.0,0.205899]
[1763110142408,0.2058786,97145.0,97138.0,0.20589083]
[1763110142609,0.20588178,97144.0,97140.0,0.019397]
[1763110143015,0.20590536,97132.0,97114.0,0.14534512]
[1763110143217,0.54437232,97124.0,97104.0,0.0927123]
[1763110143835,0.20596261,97105.0,97104.0,0.0927123]
[1763110144053,0.20596261,97105.0,97104.0,0.10486323]
[1763110144661,0.20596261,97105.0,97100.0,0.019397]
[1763110144662,0.2059711,97101.0,97100.0,0.019397]
[1763110145010,0.20596055,97106.0,97080.0,0.01030078]
[1763110145011,0.01154,97114.0,97110.0,0.019397]
[1763110145225,0.20596898,97102.0,97101.0,0.0094]
[1763110145448,0.20599113,97092.0,97089.0,0.03279]
[1763110145655,0.0227,97113.0,97089.0,0.03279]
[1763110145656,0.20599283,97091.0,97089.0,0.03279]
[1763110145804,0.2059926,97091.0,97090.0,0.04768531]
[1763110146002,0.2059926,97091.0,97090.0,0.06708231]
[1763110146820,0.41185032,97123.0,97091.0,0.0094]
[1763110146998,0.41185032,97123.0,97100.0,0.0927123]
[1763110146999,0.2059711,97101.0,97100.0,0.0927123]
[1763110147344,0.20599019,97092.0,97091.0,0.0094]
[1763110148295,0.20598736,97094.0,97091.0,0.0094]
[1763110148517,0.20598861,97093.0,97091.0,0.0094]
[1763110148974,0.20598861,97093.0,97091.0,0.0104]
[1763110149217,0.20598861,97093.0,97092.0,0.07285429]
[1763110149441,0.20598861,97093.0,97091.0,0.001]
[1763110149910,0.20598861,97093.0,97091.0,0.002]
[1763110150130,0.20599231,97091.0,97090.0,0.06708231]
[1763110150885,0.20598861,97093.0,97090.0,0.04768531]
[1763110151117,0.20598277,97096.0,97090.0,0.019397]
[1763110151366,0.02435,97109.0,97091.0,0.002]
[1763110151367,0.20598624,97094.0,97091.0,0.002]
[1763110151596,0.02435,97109.0,97095.0,0.20598377]
[1763110152067,0.20597626,97099.0,97095.0,0.20598377]
[1763110152299,0.20597626,97099.0,97096.0,0.20598153]
[1763110152531,0.20596685,97103.0,97096.0,0.06393525]
[1763110152737,0.20598286,97096.0,97090.0,0.020397]
[1763110152895,0.20598873,97093.0,97090.0,0.021397]
[1763110153090,0.20598873,97093.0,97090.0,0.020397]
[1763110153291,0.20599153,97092.0,97090.0,0.020397]
[1763110153495,0.20599153,97092.0,97085.0,0.0927123]
[1763110153496,0.20599153,97092.0,97091.0,0.03191099]
[1763110153728,0.01245,97094.0,97085.0,0.0927123]
[1763110153903,0.20599019,97092.0,97090.0,0.019397]
[1763110154103,0.20599019,97092.0,97090.0,0.020397]
[1763110154315,0.02435,97103.0,97090.0,0.020397]
[1763110154316,0.0425276,97110.0,97091.0,0.20599231]
[1763110154495,0.20597746,97098.0,97097.0,0.0927123]
[1763110154707,0.0425276,97110.0,97097.0,0.12258276]
[1763110154708,0.0181776,97110.0,97097.0,0.12258276]
[1763110154907,0.20594989,97111.0,97110.0,0.019397]
[1763110155334,0.20597746,97098.0,97097.0,0.0927123]
[1763110155538,0.20597477,97100.0,97097.0,0.0927123]
[1763110155942,0.20597573,97099.0,97097.0,0.0927123]
[1763110156239,0.20597573,97099.0,97098.0,0.08654164]
[1763110156454,0.20596448,97105.0,97097.0,0.0927123]
[1763110156455,0.2059756,97101.0,97097.0,0.0927123]
[1763110156654,0.323,97123.0,97100.0,0.019397]
[1763110156867,0.02435,97121.0,97112.0,0.0927123]
[1763110157067,0.20595512,97109.0,97105.0,0.20596192]
[1763110157235,0.20595736,97108.0,97106.0,0.00937]
[1763110157583,0.01245,97122.0,97110.0,0.019397]
[1763110157790,0.20593292,97119.0,97113.0,0.20594538]
[1763110157996,0.001,97114.0,97112.0,0.29865987]
[1763110158143,0.20594777,97112.0,97110.0,0.019397]
[1763110158351,0.20594989,97111.0,97110.0,0.019397]
[1763110158582,0.20594989,97111.0,97110.0,0.04531434]
[1763110158935,0.20594989,97111.0,97110.0,0.019397]
[1763110159780,0.20594381,97114.0,97110.0,0.019397]
[1763110159979,0.20594381,97114.0,97113.0,0.0927123]
[1763110161790,0.20594381,97114.0,97113.0,0.0937123]
[1763110162544,0.20594381,97114.0,97113.0,0.14715207]
[1763110164005,0.20594381,97114.0,97113.0,0.0937123]
[1763110164749,0.01245,97122.0,97113.0,0.0937123]
[1763110164957,0.02435,97129.0,97113.0,0.0937123]
[1763110165161,0.01245,97136.0,97121.0,0.20592766]
[1763110165357,0.01245,97136.0,97120.0,0.019397]
[1763110165358,0.20591661,97127.0,97122.0,0.20592457]
[1763110165699,0.20592232,97124.0,97123.0,0.04312511]
[1763110165916,0.20592585,97123.0,97120.0,0.2253273]
[1763110166112,0.20592232,97124.0,97121.0,0.2059285]
[1763110166290,0.20591958,97126.0,97122.0,0.20592556]
[1763110166474,0.01245,97136.0,97120.0,0.22532751]
[1763110166843,0.20592162,97125.0,97120.0,0.019397]
[1763110167074,0.20590112,97134.0,97122.0,0.20592656]
[1763110167327,0.20590748,97131.0,97130.0,0.019397]
[1763110167743,0.20590748,97131.0,97120.0,0.20593077]
[1763110167744,0.20592656,97122.0,97120.0,0.019397]
[1763110167948,0.2059355,97118.0,97115.0,0.20594137]
[1763110168163,0.01245,97122.0,97113.0,0.0927123]
[1763110168338,0.20594223,97115.0,97114.0,0.03274636]
[1763110168680,0.20594223,97115.0,97113.0,0.0927123]
[1763110168887,0.20594353,97114.0,97113.0,0.0927123]
[1763110169690,0.20594989,97111.0,97110.0,0.019397]
[1763110169895,0.2059711,97101.0,97100.0,0.019397]
[1763110170093,0.20597746,97098.0,97082.0,0.00937]
[1763110170306,0.23412746,97098.0,97097.0,0.10198353]
[1763110171487,0.02815,97098.0,97097.0,0.10198353]
[1763110171688,0.02815,97098.0,97097.0,0.10298353]
[1763110172303,0.02815,97098.0,97097.0,0.10398353]
[1763110172930,0.0117,97098.0,97097.0,0.10398353]
[1763110173985,0.3347,97108.0,97097.0,0.10398353]
[1763110174187,0.0117,97108.0,97100.0,0.019397]
[1763110174359,0.0117,97131.0,97120.0,0.019397]
[1763110174580,0.22119938,97121.0,97104.0,0.0094]
[1763110174782,0.2059414,97115.0,97113.0,0.0927123]
[1763110174943,0.2059414,97115.0,97114.0,0.01121093]
[1763110175367,0.2212114,97115.0,97114.0,0.01121093]
[1763110175915,0.20594989,97111.0,97100.0,0.14534512]